[Event "Titled Tuesday Blitz January 25 2022"]
[White "Santos Flores, Alberto"]
[Black "Kosteniuk, Alexandra"]
[WhiteFideId "3601234"]
[BlackFideId "4128125"]
[WhiteElo "2293"]
[BlackElo "2469"]
[Result "0-1"]
[Round "09"]
[TimeControl "180+1"]
[Date "2022.01.26"]
[WhiteClock "0:00:04"]
[BlackClock "0:01:09"]

1. e4 {[%clk 0:02:49]}  c6 {[%clk 0:02:59]} 2. d4 {[%clk 0:02:49]}  d5 {[%clk 0:02:59]} 3. Nc3 {[%clk 0:02:48]}  dxe4 {[%clk 0:02:59]} 4. Nxe4 {[%clk 0:02:46]}  Nf6 {[%clk 0:03:00]} 5. Nxf6+ {[%clk 0:02:39]}  exf6 {[%clk 0:03:01]} 6. c3 {[%clk 0:02:38]}  Bd6 {[%clk 0:03:01]} 7. Bd3 {[%clk 0:02:38]}  O-O {[%clk 0:03:00]} 8. Ne2 {[%clk 0:02:39]}  Re8 {[%clk 0:03:00]} 9. O-O {[%clk 0:02:38]}  Nd7 {[%clk 0:02:59]} 10. Ng3 {[%clk 0:02:38]}  Nf8 {[%clk 0:02:59]} 11. Qh5 {[%clk 0:02:36]}  Ng6 {[%clk 0:02:58]} 12. Bd2 {[%clk 0:02:12]}  Be6 {[%clk 0:02:55]} 13. b3 {[%clk 0:02:04]}  Qd7 {[%clk 0:02:44]} 14. Nf5 {[%clk 0:01:57]}  Bf8 {[%clk 0:02:44]} 15. Rae1 {[%clk 0:01:53]}  c5 {[%clk 0:02:38]} 16. Be3 {[%clk 0:01:37]}  Rac8 {[%clk 0:02:29]} 17. Rd1 {[%clk 0:01:24]}  c4 {[%clk 0:02:23]} 18. bxc4 {[%clk 0:01:15]}  Bxc4 {[%clk 0:02:24]} 19. Ng3 {[%clk 0:00:51]}  Bxd3 {[%clk 0:02:07]} 20. Rxd3 {[%clk 0:00:52]}  Rc4 {[%clk 0:02:05]} 21. Rb1 {[%clk 0:00:48]}  b6 {[%clk 0:02:04]} 22. Qb5 {[%clk 0:00:45]}  Qxb5 {[%clk 0:02:01]} 23. Rxb5 {[%clk 0:00:46]}  Rec8 {[%clk 0:02:01]} 24. Rb3 {[%clk 0:00:36]}  Ne7 {[%clk 0:02:00]} 25. Ne2 {[%clk 0:00:35]}  Nd5 {[%clk 0:01:59]} 26. Bd2 {[%clk 0:00:34]}  Bd6 {[%clk 0:01:55]} 27. g3 {[%clk 0:00:34]}  g5 {[%clk 0:01:52]} 28. Kf1 {[%clk 0:00:32]}  h6 {[%clk 0:01:47]} 29. Ng1 {[%clk 0:00:32]}  Kg7 {[%clk 0:01:41]} 30. Nf3 {[%clk 0:00:28]}  Kg6 {[%clk 0:01:41]} 31. Ne1 {[%clk 0:00:27]}  f5 {[%clk 0:01:38]} 32. Nc2 {[%clk 0:00:26]}  f4 {[%clk 0:01:34]} 33. Ke2 {[%clk 0:00:19]}  Kf5 {[%clk 0:01:31]} 34. Kf3 {[%clk 0:00:10]}  g4+ {[%clk 0:01:30]} 35. Ke2 {[%clk 0:00:10]}  Re8+ {[%clk 0:01:26]} 36. Kd1 {[%clk 0:00:10]}  Ke4 {[%clk 0:01:17]} 37. Ne1 {[%clk 0:00:08]}  Rec8 {[%clk 0:01:10]} 38. Kc2 {[%clk 0:00:04]}  Nb4+ {[%clk 0:01:09]} 0-1


[Site "https://www.chess.com"]

[Event "Titled Tuesday Blitz January 25 2022"]
[White "Sapunov, Evgeny"]
[Black "Baules Rodriguez, Jorge Luis"]
[WhiteFideId "4126661"]
[BlackFideId "6600247"]
[WhiteElo "2470"]
[BlackElo "2375"]
[Result "1-0"]
[Round "09"]
[TimeControl "180+1"]
[Date "2022.01.26"]
[WhiteClock "0:02:13"]
[BlackClock "0:00:09"]

1. c4 {[%clk 0:03:00]}  Nf6 {[%clk 0:02:43]} 2. Nf3 {[%clk 0:03:01]}  g6 {[%clk 0:02:41]} 3. Nc3 {[%clk 0:03:01]}  Bg7 {[%clk 0:02:40]} 4. e4 {[%clk 0:03:01]}  d6 {[%clk 0:02:40]} 5. d4 {[%clk 0:03:01]}  O-O {[%clk 0:02:40]} 6. Be2 {[%clk 0:03:02]}  e5 {[%clk 0:02:41]} 7. O-O {[%clk 0:03:03]}  Na6 {[%clk 0:02:41]} 8. Be3 {[%clk 0:03:01]}  Ng4 {[%clk 0:02:40]} 9. Bg5 {[%clk 0:03:01]}  Qe8 {[%clk 0:02:40]} 10. Re1 {[%clk 0:03:01]}  h6 {[%clk 0:02:36]} 11. Bh4 {[%clk 0:03:01]}  exd4 {[%clk 0:02:30]} 12. Nxd4 {[%clk 0:03:01]}  Qe5 {[%clk 0:02:23]} 13. Nf3 {[%clk 0:02:58]}  Qc5 {[%clk 0:02:20]} 14. Rc1 {[%clk 0:02:58]}  g5 {[%clk 0:02:05]} 15. Bg3 {[%clk 0:02:58]}  f5 {[%clk 0:02:04]} 16. exf5 {[%clk 0:02:57]}  Bxf5 {[%clk 0:02:03]} 17. a3 {[%clk 0:02:56]}  Qc6 {[%clk 0:01:12]} 18. b4 {[%clk 0:02:48]}  Qd7 {[%clk 0:01:10]} 19. Nd4 {[%clk 0:02:45]}  h5 {[%clk 0:01:04]} 20. h3 {[%clk 0:02:41]}  Nf6 {[%clk 0:00:45]} 21. Nxf5 {[%clk 0:02:32]}  Qxf5 {[%clk 0:00:44]} 22. Bxh5 {[%clk 0:02:32]}  Nxh5 {[%clk 0:00:40]} 23. Qxh5 {[%clk 0:02:31]}  Rf7 {[%clk 0:00:26]} 24. Ne4 {[%clk 0:02:25]}  Bf6 {[%clk 0:00:18]} 25. Rcd1 {[%clk 0:02:17]}  Raf8 {[%clk 0:00:17]} 26. Rd5 {[%clk 0:02:15]}  Qh7 {[%clk 0:00:10]} 27. Qxh7+ {[%clk 0:02:14]}  Kxh7 {[%clk 0:00:10]} 28. Nxg5+ {[%clk 0:02:13]}  Bxg5 {[%clk 0:00:10]} 29. Rxg5 {[%clk 0:02:14]}  Nb8 {[%clk 0:00:09]} 30. Re4 {[%clk 0:02:13]} 1-0


[Site "https://www.chess.com"]

[Event "Titled Tuesday Blitz January 25 2022"]
[White "Sjugirov, Sanan"]
[Black "Willow, Jonah B"]
[WhiteFideId "4189302"]
[BlackFideId "438804"]
[WhiteElo "2602"]
[BlackElo "2261"]
[Result "1-0"]
[Round "09"]
[TimeControl "180+1"]
[Date "2022.01.26"]
[WhiteClock "0:01:35"]
[BlackClock "0:00:27"]

1. e4 {[%clk 0:03:00]}  c5 {[%clk 0:02:59]} 2. Nf3 {[%clk 0:03:00]}  Nc6 {[%clk 0:02:59]} 3. Bb5 {[%clk 0:03:00]}  g6 {[%clk 0:03:00]} 4. Bxc6 {[%clk 0:03:00]}  dxc6 {[%clk 0:03:01]} 5. d3 {[%clk 0:03:00]}  Bg7 {[%clk 0:03:01]} 6. h3 {[%clk 0:03:00]}  e5 {[%clk 0:02:59]} 7. a4 {[%clk 0:02:48]}  a5 {[%clk 0:02:46]} 8. Be3 {[%clk 0:02:44]}  b6 {[%clk 0:02:45]} 9. Nbd2 {[%clk 0:02:44]}  f5 {[%clk 0:02:37]} 10. Nc4 {[%clk 0:02:39]}  Qe7 {[%clk 0:02:12]} 11. Nxb6 {[%clk 0:02:33]}  Rb8 {[%clk 0:02:11]} 12. Nxc8 {[%clk 0:02:28]}  Rxc8 {[%clk 0:02:12]} 13. Qe2 {[%clk 0:02:11]}  Nf6 {[%clk 0:02:05]} 14. Bg5 {[%clk 0:02:09]}  O-O {[%clk 0:02:00]} 15. O-O {[%clk 0:02:07]}  h6 {[%clk 0:01:47]} 16. Bd2 {[%clk 0:02:06]}  f4 {[%clk 0:01:44]} 17. Bxa5 {[%clk 0:02:04]}  g5 {[%clk 0:01:42]} 18. Bc3 {[%clk 0:02:03]}  Nd7 {[%clk 0:01:39]} 19. Nd2 {[%clk 0:01:58]}  Qf7 {[%clk 0:01:31]} 20. Nc4 {[%clk 0:01:58]}  Ra8 {[%clk 0:01:28]} 21. Qg4 {[%clk 0:01:51]}  Ra7 {[%clk 0:01:14]} 22. Nd6 {[%clk 0:01:49]}  Qg6 {[%clk 0:01:10]} 23. Nf5 {[%clk 0:01:49]}  Kh7 {[%clk 0:01:07]} 24. Qe2 {[%clk 0:01:41]}  h5 {[%clk 0:01:06]} 25. f3 {[%clk 0:01:41]}  Kh8 {[%clk 0:00:42]} 26. b3 {[%clk 0:01:40]}  Rxf5 {[%clk 0:00:29]} 27. exf5 {[%clk 0:01:40]}  Qxf5 {[%clk 0:00:30]} 28. Qe4 {[%clk 0:01:37]}  Qe6 {[%clk 0:00:30]} 29. Rfe1 {[%clk 0:01:36]}  Ra8 {[%clk 0:00:27]} 30. a5 {[%clk 0:01:35]} 1-0


[Site "https://www.chess.com"]

[Event "Titled Tuesday Blitz January 25 2022"]
[White "Svane, Frederik"]
[Black "Sanal, Vahap"]
[WhiteFideId "12923044"]
[BlackFideId "6300545"]
[WhiteElo "2459"]
[BlackElo "2603"]
[Result "1/2-1/2"]
[Round "09"]
[TimeControl "180+1"]
[Date "2022.01.26"]
[WhiteClock "0:00:06"]
[BlackClock "0:00:02"]

1. e4 {[%clk 0:03:00]}  d6 {[%clk 0:03:00]} 2. d4 {[%clk 0:03:01]}  Nf6 {[%clk 0:03:01]} 3. Nd2 {[%clk 0:03:01]}  e5 {[%clk 0:02:59]} 4. c3 {[%clk 0:03:02]}  Nc6 {[%clk 0:02:54]} 5. Ngf3 {[%clk 0:03:01]}  g6 {[%clk 0:02:53]} 6. Bd3 {[%clk 0:03:00]}  Bg7 {[%clk 0:02:54]} 7. O-O {[%clk 0:03:01]}  O-O {[%clk 0:02:54]} 8. Re1 {[%clk 0:03:00]}  Re8 {[%clk 0:02:54]} 9. h3 {[%clk 0:03:00]}  a6 {[%clk 0:02:50]} 10. Nf1 {[%clk 0:02:59]}  Bd7 {[%clk 0:02:43]} 11. Ng3 {[%clk 0:02:59]}  b5 {[%clk 0:02:37]} 12. Bg5 {[%clk 0:02:55]}  h6 {[%clk 0:02:33]} 13. Be3 {[%clk 0:02:55]}  Kh7 {[%clk 0:02:32]} 14. Qd2 {[%clk 0:02:52]}  Na5 {[%clk 0:02:27]} 15. b4 {[%clk 0:02:48]}  Nc4 {[%clk 0:02:21]} 16. Bxc4 {[%clk 0:02:47]}  bxc4 {[%clk 0:02:22]} 17. dxe5 {[%clk 0:02:42]}  dxe5 {[%clk 0:02:22]} 18. Qe2 {[%clk 0:02:43]}  Be6 {[%clk 0:01:59]} 19. Nxe5 {[%clk 0:01:40]}  Nh5 {[%clk 0:01:58]} 20. Bd4 {[%clk 0:01:02]}  Nxg3 {[%clk 0:01:56]} 21. fxg3 {[%clk 0:01:03]}  Qd6 {[%clk 0:01:38]} 22. Nf3 {[%clk 0:00:59]}  Qxg3 {[%clk 0:01:31]} 23. Bxg7 {[%clk 0:00:59]}  Kxg7 {[%clk 0:01:32]} 24. Qf2 {[%clk 0:00:59]}  Qxf2+ {[%clk 0:01:20]} 25. Kxf2 {[%clk 0:01:00]}  a5 {[%clk 0:01:14]} 26. b5 {[%clk 0:01:01]}  a4 {[%clk 0:01:10]} 27. Nd4 {[%clk 0:00:56]}  Bd7 {[%clk 0:01:10]} 28. Rab1 {[%clk 0:00:53]}  Re5 {[%clk 0:01:04]} 29. Rb4 {[%clk 0:00:53]}  Rc5 {[%clk 0:01:01]} 30. a3 {[%clk 0:00:45]}  Ra5 {[%clk 0:00:51]} 31. Reb1 {[%clk 0:00:37]}  Ra8 {[%clk 0:00:51]} 32. Re1 {[%clk 0:00:36]}  h5 {[%clk 0:00:50]} 33. h4 {[%clk 0:00:32]}  Ra5 {[%clk 0:00:48]} 34. Reb1 {[%clk 0:00:32]}  Ra8 {[%clk 0:00:48]} 35. Re1 {[%clk 0:00:32]}  Ra7 {[%clk 0:00:41]} 36. Kf3 {[%clk 0:00:29]}  Bg4+ {[%clk 0:00:38]} 37. Kf4 {[%clk 0:00:29]}  f6 {[%clk 0:00:38]} 38. e5 {[%clk 0:00:27]}  Ra8 {[%clk 0:00:29]} 39. e6 {[%clk 0:00:26]}  g5+ {[%clk 0:00:24]} 40. Kg3 {[%clk 0:00:22]}  Re5 {[%clk 0:00:14]} 41. Rxe5 {[%clk 0:00:18]}  fxe5 {[%clk 0:00:15]} 42. Nc6 {[%clk 0:00:18]}  gxh4+ {[%clk 0:00:16]} 43. Kxh4 {[%clk 0:00:19]}  Kf6 {[%clk 0:00:15]} 44. e7 {[%clk 0:00:14]}  Rg8 {[%clk 0:00:14]} 45. Rxc4 {[%clk 0:00:13]}  Bd7 {[%clk 0:00:14]} 46. Re4 {[%clk 0:00:09]}  Rxg2 {[%clk 0:00:08]} 47. Nxe5 {[%clk 0:00:08]}  Be8 {[%clk 0:00:04]} 48. Nc6 {[%clk 0:00:03]}  Rh2+ {[%clk 0:00:04]} 49. Kg3 {[%clk 0:00:03]}  Rc2 {[%clk 0:00:05]} 50. Rc4 {[%clk 0:00:02]}  Rc1 {[%clk 0:00:04]} 51. Nd4 {[%clk 0:00:03]}  Kxe7 {[%clk 0:00:04]} 52. Rxc7+ {[%clk 0:00:03]}  Kd6 {[%clk 0:00:05]} 53. Rc8 {[%clk 0:00:03]}  Bd7 {[%clk 0:00:05]} 54. Rc4 {[%clk 0:00:03]}  Kd5 {[%clk 0:00:05]} 55. Rc7 {[%clk 0:00:03]}  Kd6 {[%clk 0:00:05]} 56. b6 {[%clk 0:00:03]}  Rb1 {[%clk 0:00:05]} 57. c4 {[%clk 0:00:03]}  Rxb6 {[%clk 0:00:04]} 58. c5+ {[%clk 0:00:01]}  Kxc7 {[%clk 0:00:04]} 59. cxb6+ {[%clk 0:00:02]}  Kxb6 {[%clk 0:00:05]} 60. Ne2 {[%clk 0:00:02]}  Kc5 {[%clk 0:00:05]} 61. Nc3 {[%clk 0:00:02]}  Kc4 {[%clk 0:00:05]} 62. Ne4 {[%clk 0:00:03]}  Kd4 {[%clk 0:00:02]} 63. Nf6 {[%clk 0:00:03]}  Bc6 {[%clk 0:00:02]} 64. Nxh5 {[%clk 0:00:03]}  Kc3 {[%clk 0:00:02]} 65. Nf4 {[%clk 0:00:04]}  Kb3 {[%clk 0:00:02]} 66. Nd3 {[%clk 0:00:04]}  Kxa3 {[%clk 0:00:01]} 67. Nc5 {[%clk 0:00:05]}  Kb4 {[%clk 0:00:02]} 68. Nxa4 {[%clk 0:00:06]} 1/2-1/2


[Site "https://www.chess.com"]

[Event "Titled Tuesday Blitz January 25 2022"]
[White "Timofeev, Artyom"]
[Black "Cherniaiev, Tykhon"]
[WhiteFideId "4140419"]
[BlackFideId "14182360"]
[WhiteElo "2583"]
[BlackElo "2289"]
[Result "1-0"]
[Round "09"]
[TimeControl "180+1"]
[Date "2022.01.26"]
[WhiteClock "0:00:24"]
[BlackClock "0:00:03"]

1. d4 {[%clk 0:03:00]}  Nf6 {[%clk 0:02:59]} 2. Nf3 {[%clk 0:03:00]}  e6 {[%clk 0:03:00]} 3. Bg5 {[%clk 0:03:00]}  c5 {[%clk 0:02:59]} 4. d5 {[%clk 0:02:59]}  exd5 {[%clk 0:02:51]} 5. Nc3 {[%clk 0:02:59]}  Be7 {[%clk 0:02:41]} 6. Nxd5 {[%clk 0:02:53]}  Nxd5 {[%clk 0:02:41]} 7. Qxd5 {[%clk 0:02:53]}  Nc6 {[%clk 0:02:33]} 8. O-O-O {[%clk 0:02:40]}  O-O {[%clk 0:02:27]} 9. h4 {[%clk 0:02:36]}  Nb4 {[%clk 0:02:15]} 10. Qb3 {[%clk 0:02:31]}  d6 {[%clk 0:02:11]} 11. e3 {[%clk 0:02:25]}  h6 {[%clk 0:02:02]} 12. Bxe7 {[%clk 0:02:23]}  Qxe7 {[%clk 0:02:00]} 13. Bc4 {[%clk 0:02:16]}  Nc6 {[%clk 0:01:52]} 14. Qd3 {[%clk 0:02:13]}  Rd8 {[%clk 0:01:23]} 15. Ng5 {[%clk 0:02:11]}  hxg5 {[%clk 0:01:23]} 16. hxg5 {[%clk 0:02:10]}  Qxg5 {[%clk 0:01:23]} 17. Qh7+ {[%clk 0:01:48]}  Kf8 {[%clk 0:01:23]} 18. f4 {[%clk 0:01:48]}  Qg6 {[%clk 0:01:09]} 19. Qh4 {[%clk 0:01:42]}  Qg4 {[%clk 0:00:49]} 20. Qf2 {[%clk 0:01:16]}  Be6 {[%clk 0:00:43]} 21. Be2 {[%clk 0:01:15]}  Qg6 {[%clk 0:00:42]} 22. g4 {[%clk 0:01:11]}  Bxg4 {[%clk 0:00:25]} 23. Rh8+ {[%clk 0:00:51]}  Ke7 {[%clk 0:00:25]} 24. Rxd8 {[%clk 0:00:51]}  Rxd8 {[%clk 0:00:19]} 25. Qh4+ {[%clk 0:00:52]}  f6 {[%clk 0:00:19]} 26. Bxg4 {[%clk 0:00:51]}  Nb4 {[%clk 0:00:19]} 27. Rd2 {[%clk 0:00:47]}  Nxa2+ {[%clk 0:00:17]} 28. Kb1 {[%clk 0:00:47]}  Nb4 {[%clk 0:00:17]} 29. Bf3 {[%clk 0:00:43]}  Qg1+ {[%clk 0:00:09]} 30. Rd1 {[%clk 0:00:43]}  Qg6 {[%clk 0:00:10]} 31. e4 {[%clk 0:00:42]}  Qf7 {[%clk 0:00:09]} 32. b3 {[%clk 0:00:37]}  a5 {[%clk 0:00:09]} 33. Be2 {[%clk 0:00:35]}  a4 {[%clk 0:00:08]} 34. Bc4 {[%clk 0:00:35]}  Qg6 {[%clk 0:00:08]} 35. Qf2 {[%clk 0:00:31]}  axb3 {[%clk 0:00:08]} 36. Bxb3 {[%clk 0:00:32]}  Ra8 {[%clk 0:00:07]} 37. Rg1 {[%clk 0:00:32]}  Qh6 {[%clk 0:00:07]} 38. Qg3 {[%clk 0:00:29]}  Kf8 {[%clk 0:00:05]} 39. Qg2 {[%clk 0:00:26]}  Rd8 {[%clk 0:00:04]} 40. Rh1 {[%clk 0:00:24]}  Qxf4 {[%clk 0:00:02]} 41. Rh8+ {[%clk 0:00:24]}  Ke7 {[%clk 0:00:03]} 42. Qxg7# {[%clk 0:00:24]} 1-0


[Site "https://www.chess.com"]

[Event "Titled Tuesday Blitz January 25 2022"]
[White "Triapishko, Alexandr"]
[Black "Seul, Georg"]
[WhiteFideId "14122286"]
[BlackFideId "4601653"]
[WhiteElo "2479"]
[BlackElo "2271"]
[Result "1-0"]
[Round "09"]
[TimeControl "180+1"]
[Date "2022.01.26"]
[WhiteClock "0:00:04"]
[BlackClock "0:00:13"]

1. d4 {[%clk 0:02:47]}  Nf6 {[%clk 0:02:59]} 2. c4 {[%clk 0:02:47]}  e6 {[%clk 0:02:58]} 3. Nf3 {[%clk 0:02:48]}  Bb4+ {[%clk 0:02:58]} 4. Bd2 {[%clk 0:02:48]}  a5 {[%clk 0:02:58]} 5. g3 {[%clk 0:02:48]}  d6 {[%clk 0:02:58]} 6. Bg2 {[%clk 0:02:48]}  Nbd7 {[%clk 0:02:58]} 7. O-O {[%clk 0:02:47]}  e5 {[%clk 0:02:58]} 8. Nc3 {[%clk 0:02:45]}  O-O {[%clk 0:02:58]} 9. Qc2 {[%clk 0:02:45]}  Re8 {[%clk 0:02:57]} 10. e3 {[%clk 0:02:39]}  e4 {[%clk 0:02:00]} 11. Ng5 {[%clk 0:02:39]}  Bxc3 {[%clk 0:01:59]} 12. Bxc3 {[%clk 0:02:39]}  Qe7 {[%clk 0:01:59]} 13. f3 {[%clk 0:02:22]}  exf3 {[%clk 0:01:53]} 14. Rxf3 {[%clk 0:02:23]}  h6 {[%clk 0:01:49]} 15. Nh3 {[%clk 0:02:23]}  Ne4 {[%clk 0:01:47]} 16. Nf4 {[%clk 0:02:13]}  Ndf6 {[%clk 0:01:43]} 17. Re1 {[%clk 0:02:08]}  c6 {[%clk 0:01:34]} 18. Rff1 {[%clk 0:01:58]}  d5 {[%clk 0:01:08]} 19. b3 {[%clk 0:01:44]}  Be6 {[%clk 0:01:06]} 20. Bb2 {[%clk 0:01:35]}  Qd7 {[%clk 0:01:06]} 21. Nxe6 {[%clk 0:01:11]}  Qxe6 {[%clk 0:01:05]} 22. Rf4 {[%clk 0:01:09]}  a4 {[%clk 0:01:01]} 23. cxd5 {[%clk 0:00:42]}  cxd5 {[%clk 0:00:58]} 24. bxa4 {[%clk 0:00:43]}  Qa6 {[%clk 0:00:53]} 25. Bf1 {[%clk 0:00:41]}  Qxa4 {[%clk 0:00:42]} 26. Qxa4 {[%clk 0:00:40]}  Rxa4 {[%clk 0:00:43]} 27. Bb5 {[%clk 0:00:38]}  Rxa2 {[%clk 0:00:42]} 28. Bxe8 {[%clk 0:00:39]}  Nxe8 {[%clk 0:00:42]} 29. Ba1 {[%clk 0:00:26]}  N8f6 {[%clk 0:00:41]} 30. Rb1 {[%clk 0:00:19]}  Ng5 {[%clk 0:00:39]} 31. Kh1 {[%clk 0:00:07]}  h5 {[%clk 0:00:39]} 32. Bb2 {[%clk 0:00:07]}  Nge4 {[%clk 0:00:36]} 33. Bc1 {[%clk 0:00:03]}  Re2 {[%clk 0:00:35]} 34. Kg1 {[%clk 0:00:02]}  Ng4 {[%clk 0:00:33]} 35. Rxb7 {[%clk 0:00:02]}  f6 {[%clk 0:00:32]} 36. Rb8+ {[%clk 0:00:02]}  Kh7 {[%clk 0:00:32]} 37. h3 {[%clk 0:00:03]}  Nxe3 {[%clk 0:00:28]} 38. Bxe3 {[%clk 0:00:02]}  Rxe3 {[%clk 0:00:29]} 39. g4 {[%clk 0:00:02]}  Rxh3 {[%clk 0:00:28]} 40. gxh5 {[%clk 0:00:03]}  Rxh5 {[%clk 0:00:27]} 41. Rd8 {[%clk 0:00:04]}  Rg5+ {[%clk 0:00:25]} 42. Kf1 {[%clk 0:00:04]}  Kg6 {[%clk 0:00:23]} 43. Rh4 {[%clk 0:00:03]}  Ng3+ {[%clk 0:00:23]} 44. Kf2 {[%clk 0:00:03]}  Nf5 {[%clk 0:00:23]} 45. Rf4 {[%clk 0:00:02]}  Nh6 {[%clk 0:00:23]} 46. Rd7 {[%clk 0:00:02]}  Ng4+ {[%clk 0:00:21]} 47. Kf3 {[%clk 0:00:02]}  Nh2+ {[%clk 0:00:21]} 48. Ke2 {[%clk 0:00:02]}  Ng4 {[%clk 0:00:21]} 49. Kd3 {[%clk 0:00:02]}  Kh5 {[%clk 0:00:18]} 50. Rf1 {[%clk 0:00:01]}  Kh4 {[%clk 0:00:18]} 51. Rh1+ {[%clk 0:00:01]}  Kg3 {[%clk 0:00:18]} 52. Rh8 {[%clk 0:00:02]}  f5 {[%clk 0:00:18]} 53. Rxd5 {[%clk 0:00:01]}  Nf2+ {[%clk 0:00:16]} 54. Kc4 {[%clk 0:00:02]}  Ne4 {[%clk 0:00:17]} 55. Rf8 {[%clk 0:00:02]}  g6 {[%clk 0:00:16]} 56. Re5 {[%clk 0:00:02]}  Kf4 {[%clk 0:00:16]} 57. Kd5 {[%clk 0:00:02]}  Rg1 {[%clk 0:00:16]} 58. Rxe4+ {[%clk 0:00:02]}  Kg5 {[%clk 0:00:13]} 59. Re6 {[%clk 0:00:03]}  Rd1 {[%clk 0:00:13]} 60. Rg8 {[%clk 0:00:03]}  f4 {[%clk 0:00:13]} 61. Rexg6+ {[%clk 0:00:04]}  Kf5 {[%clk 0:00:13]} 62. Rg5+ {[%clk 0:00:04]} 1-0


[Site "https://www.chess.com"]

[Event "Titled Tuesday Blitz January 25 2022"]
[White "Tsyhanchuk, Stanislav"]
[Black "Samunenkov, Ihor"]
[WhiteFideId "13505130"]
[BlackFideId "14187086"]
[WhiteElo "2078"]
[BlackElo "2406"]
[Result "0-1"]
[Round "09"]
[TimeControl "180+1"]
[Date "2022.01.26"]
[WhiteClock "0:00:19"]
[BlackClock "0:00:21"]

1. e4 {[%clk 0:03:00]}  c5 {[%clk 0:02:59]} 2. Nf3 {[%clk 0:03:00]}  Nc6 {[%clk 0:02:58]} 3. Bb5 {[%clk 0:03:00]}  g6 {[%clk 0:02:58]} 4. O-O {[%clk 0:03:00]}  Bg7 {[%clk 0:02:58]} 5. c3 {[%clk 0:03:00]}  e5 {[%clk 0:02:57]} 6. d3 {[%clk 0:02:47]}  Nge7 {[%clk 0:02:56]} 7. Be3 {[%clk 0:02:40]}  d6 {[%clk 0:02:51]} 8. Qc1 {[%clk 0:02:38]}  O-O {[%clk 0:02:46]} 9. Bh6 {[%clk 0:02:36]}  a6 {[%clk 0:02:12]} 10. Bxc6 {[%clk 0:02:20]}  Nxc6 {[%clk 0:02:09]} 11. Bxg7 {[%clk 0:02:21]}  Kxg7 {[%clk 0:02:09]} 12. Nbd2 {[%clk 0:02:21]}  d5 {[%clk 0:02:06]} 13. Qe1 {[%clk 0:02:18]}  Re8 {[%clk 0:02:01]} 14. Qe2 {[%clk 0:02:12]}  b5 {[%clk 0:01:45]} 15. Rfe1 {[%clk 0:02:07]}  d4 {[%clk 0:01:37]} 16. c4 {[%clk 0:02:00]}  Be6 {[%clk 0:01:29]} 17. h3 {[%clk 0:01:54]}  bxc4 {[%clk 0:01:26]} 18. Nxc4 {[%clk 0:01:54]}  Bxc4 {[%clk 0:01:26]} 19. dxc4 {[%clk 0:01:54]}  Qb6 {[%clk 0:01:19]} 20. Qd2 {[%clk 0:01:46]}  Qb4 {[%clk 0:01:09]} 21. Qg5 {[%clk 0:01:26]}  h6 {[%clk 0:00:42]} 22. Qg3 {[%clk 0:01:25]}  Qxc4 {[%clk 0:00:41]} 23. Rac1 {[%clk 0:01:23]}  Qb5 {[%clk 0:00:40]} 24. Nh4 {[%clk 0:01:08]}  Kh7 {[%clk 0:00:39]} 25. Qf3 {[%clk 0:01:02]}  Ra7 {[%clk 0:00:38]} 26. b3 {[%clk 0:00:54]}  Re6 {[%clk 0:00:33]} 27. Rc4 {[%clk 0:00:46]}  Na5 {[%clk 0:00:30]} 28. Rcc1 {[%clk 0:00:39]}  Rd7 {[%clk 0:00:27]} 29. Red1 {[%clk 0:00:34]}  c4 {[%clk 0:00:23]} 30. bxc4 {[%clk 0:00:30]}  Nxc4 {[%clk 0:00:23]} 31. Qd3 {[%clk 0:00:20]}  Nb2 {[%clk 0:00:20]} 32. Qxb5 {[%clk 0:00:19]}  axb5 {[%clk 0:00:21]} 33. Rd3 {[%clk 0:00:19]}  Nxd3 {[%clk 0:00:21]} 0-1


[Site "https://www.chess.com"]

[Event "Titled Tuesday Blitz January 25 2022"]
[White "Urazayev, Arystanbek"]
[Black "Hoghmrtsyan, Artur"]
[WhiteFideId "13709810"]
[BlackFideId "13306685"]
[WhiteElo "2321"]
[BlackElo "2613"]
[Result "0-1"]
[Round "09"]
[TimeControl "180+1"]
[Date "2022.01.26"]
[WhiteClock "0:00:23"]
[BlackClock "0:00:18"]

1. c4 {[%clk 0:03:00]}  Nf6 {[%clk 0:02:59]} 2. Nc3 {[%clk 0:03:01]}  g6 {[%clk 0:02:58]} 3. e4 {[%clk 0:02:58]}  d6 {[%clk 0:02:58]} 4. d4 {[%clk 0:02:59]}  Bg7 {[%clk 0:02:58]} 5. Be2 {[%clk 0:02:59]}  O-O {[%clk 0:02:58]} 6. h4 {[%clk 0:03:00]}  h5 {[%clk 0:02:53]} 7. Nf3 {[%clk 0:02:57]}  c5 {[%clk 0:02:50]} 8. d5 {[%clk 0:02:57]}  e6 {[%clk 0:02:49]} 9. Ng5 {[%clk 0:02:57]}  exd5 {[%clk 0:02:46]} 10. cxd5 {[%clk 0:02:56]}  Nbd7 {[%clk 0:02:44]} 11. f3 {[%clk 0:02:56]}  Ne5 {[%clk 0:02:43]} 12. Be3 {[%clk 0:02:56]}  a6 {[%clk 0:02:42]} 13. a4 {[%clk 0:02:57]}  Rb8 {[%clk 0:02:41]} 14. O-O {[%clk 0:02:55]}  Bd7 {[%clk 0:02:40]} 15. a5 {[%clk 0:02:55]}  Re8 {[%clk 0:02:31]} 16. Qd2 {[%clk 0:02:52]}  Nh7 {[%clk 0:02:11]} 17. Rfb1 {[%clk 0:02:46]}  Nxg5 {[%clk 0:02:02]} 18. Bxg5 {[%clk 0:02:47]}  Bf6 {[%clk 0:01:56]} 19. Bxf6 {[%clk 0:02:44]}  Qxf6 {[%clk 0:01:56]} 20. Qg5 {[%clk 0:02:44]}  Qg7 {[%clk 0:01:48]} 21. Nd1 {[%clk 0:02:32]}  f5 {[%clk 0:01:45]} 22. Nf2 {[%clk 0:02:30]}  Nf7 {[%clk 0:01:36]} 23. Qg3 {[%clk 0:02:26]}  Qf6 {[%clk 0:01:34]} 24. Ra3 {[%clk 0:02:24]}  f4 {[%clk 0:01:29]} 25. Qh2 {[%clk 0:02:22]}  Ne5 {[%clk 0:01:25]} 26. b4 {[%clk 0:02:22]}  c4 {[%clk 0:01:24]} 27. Nd1 {[%clk 0:02:21]}  b6 {[%clk 0:01:18]} 28. Kf1 {[%clk 0:02:01]}  bxa5 {[%clk 0:01:13]} 29. Rxa5 {[%clk 0:02:02]}  Rb6 {[%clk 0:01:13]} 30. Qg1 {[%clk 0:02:02]}  Reb8 {[%clk 0:01:11]} 31. Qf2 {[%clk 0:01:57]}  Rxb4 {[%clk 0:01:04]} 32. Rxb4 {[%clk 0:01:57]}  Rxb4 {[%clk 0:01:05]} 33. Rxa6 {[%clk 0:01:58]}  Rb1 {[%clk 0:00:59]} 34. Qd4 {[%clk 0:01:46]}  Kg7 {[%clk 0:00:47]} 35. Qa7 {[%clk 0:01:03]}  Kh6 {[%clk 0:00:43]} 36. Qc7 {[%clk 0:01:03]}  Bb5 {[%clk 0:00:31]} 37. Rxd6 {[%clk 0:01:02]}  Qxh4 {[%clk 0:00:25]} 38. Rd8 {[%clk 0:00:30]}  Rxd1+ {[%clk 0:00:18]} 39. Bxd1 {[%clk 0:00:29]}  Qh1+ {[%clk 0:00:18]} 40. Kf2 {[%clk 0:00:24]}  Nd3+ {[%clk 0:00:18]} 41. Ke2 {[%clk 0:00:23]}  Qe1# {[%clk 0:00:18]} 0-1


[Site "https://www.chess.com"]